[Event "*** SCC Grand Prix: Titled Tuesday Blitz"]
[Site "Chess.com"]
[Date "2020.08.11"]
[Round "9"]
[White "WPWPWP-2015"]
[Black "Iskusnyh"]
[Result "0-1"]
[WhiteElo "2393"]
[BlackElo "2558"]
[TimeControl "180+1"]
[EndTime "11:45:23 PDT"]
[Termination "Iskusnyh won on time"]

1. e4 {[%clk 0:02:09]} 1... e6 {[%clk 0:02:58.7]} 2. d4 {[%clk 0:02:06.2]} 2...
d5 {[%clk 0:02:59.2]} 3. Nc3 {[%clk 0:02:05.8]} 3... Nf6 {[%clk 0:02:57.8]} 4.
e5 {[%clk 0:02:02.5]} 4... Nfd7 {[%clk 0:02:56.3]} 5. f4 {[%clk 0:02:02.5]} 5...
c5 {[%clk 0:02:56.7]} 6. Nf3 {[%clk 0:02:02.1]} 6... Nc6 {[%clk 0:02:57.2]} 7.
Be3 {[%clk 0:02:01.9]} 7... Rb8 {[%clk 0:02:51.8]} 8. Be2 {[%clk 0:01:59.6]}
8... Qa5 {[%clk 0:02:49.9]} 9. O-O {[%clk 0:01:58.2]} 9... b5 {[%clk 0:02:49.2]}
10. a3 {[%clk 0:01:55.1]} 10... b4 {[%clk 0:02:45.1]} 11. axb4 {[%clk
0:01:54.7]} 11... Qxb4 {[%clk 0:02:45.6]} 12. Qd2 {[%clk 0:01:39.5]} 12... cxd4
{[%clk 0:02:41.7]} 13. Nxd4 {[%clk 0:01:39]} 13... Nxd4 {[%clk 0:02:41.8]} 14.
Bxd4 {[%clk 0:01:34.5]} 14... Bc5 {[%clk 0:02:41.6]} 15. Bxc5 {[%clk 0:01:25.8]}
15... Qxc5+ {[%clk 0:02:41.3]} 16. Kh1 {[%clk 0:01:25]} 16... O-O {[%clk
0:02:41]} 17. Bd3 {[%clk 0:01:22.3]} 17... f5 {[%clk 0:02:26.4]} 18. Ne2 {[%clk
0:01:15.6]} 18... Rxb2 {[%clk 0:02:18.6]} 19. Ra5 {[%clk 0:01:07.3]} 19... Qb6
{[%clk 0:02:12.9]} 20. h3 {[%clk 0:00:56.2]} 20... Nc5 {[%clk 0:02:07.8]} 21.
Rfa1 {[%clk 0:00:42.2]} 21... Nb3 {[%clk 0:02:05.4]} 22. Qc3 {[%clk 0:00:17.9]}
22... Nxa1 {[%clk 0:01:56.9]} 23. Rxa1 {[%clk 0:00:16.1]} 23... Rb1+ {[%clk
0:01:53.7]} 24. Rxb1 {[%clk 0:00:16.2]} 24... Qxb1+ {[%clk 0:01:54]} 25. Kh2
{[%clk 0:00:16.8]} 25... Qb6 {[%clk 0:01:52.8]} 26. Qa3 {[%clk 0:00:11.1]} 26...
Rf7 {[%clk 0:01:11.3]} 27. Ng3 {[%clk 0:00:08.3]} 27... a5 {[%clk 0:01:09.5]}
28. Nh5 {[%clk 0:00:05]} 28... Qb4 {[%clk 0:01:09.4]} 29. Qa2 {[%clk 0:00:04]}
29... Rc7 {[%clk 0:01:06.3]} 30. Ng3 {[%clk 0:00:02.6]} 30... Qxf4 {[%clk
0:01:04.5]} 31. Qxa5 {[%clk 0:00:02.2]} 31... Qxe5 {[%clk 0:01:03.8]} 32. Qb6
{[%clk 0:00:02.2]} 32... h5 {[%clk 0:01:01.4]} 33. Qb5 {[%clk 0:00:02]} 33...
Bd7 {[%clk 0:00:53.4]} 34. Qb8+ {[%clk 0:00:01.4]} 34... Kh7 {[%clk 0:00:52.2]}
35. h4 {[%clk 0:00:01.5]} 35... Qf4 {[%clk 0:00:46.5]} 36. Qd8 {[%clk
0:00:01.1]} 36... Ra7 {[%clk 0:00:34.3]} 0-1

[Event "*** SCC Grand Prix: Titled Tuesday Blitz"]
[Site "Chess.com"]
[Date "2020.08.11"]
[Round "9"]
[White "Schandenfreude"]
[Black "Irishchessman16"]
[Result "0-1"]
[WhiteElo "2534"]
[BlackElo "2396"]
[TimeControl "180+1"]
[EndTime "11:45:24 PDT"]
[Termination "Irishchessman16 won on time"]

1. d4 {[%clk 0:03:00.9]} 1... f5 {[%clk 0:02:59.5]} 2. g3 {[%clk 0:02:59.1]}
2... Nf6 {[%clk 0:02:59.6]} 3. Bg2 {[%clk 0:02:58.3]} 3... g6 {[%clk 0:03:00.2]}
4. Nf3 {[%clk 0:02:51.9]} 4... Bg7 {[%clk 0:03:00.5]} 5. O-O {[%clk 0:02:51.8]}
5... O-O {[%clk 0:03:00.9]} 6. c4 {[%clk 0:02:51.5]} 6... d6 {[%clk 0:03:00.8]}
7. Nc3 {[%clk 0:02:48]} 7... c6 {[%clk 0:03:01.3]} 8. d5 {[%clk 0:02:38.5]} 8...
e5 {[%clk 0:03:00.9]} 9. dxe6 {[%clk 0:02:36.5]} 9... Bxe6 {[%clk 0:03:01.4]}
10. Qa4 {[%clk 0:02:19.4]} 10... Nbd7 {[%clk 0:02:50.2]} 11. Ng5 {[%clk
0:02:11.5]} 11... Re8 {[%clk 0:02:46.2]} 12. Nxe6 {[%clk 0:02:10.1]} 12... Rxe6
{[%clk 0:02:47.1]} 13. Rd1 {[%clk 0:01:48.1]} 13... Qb6 {[%clk 0:02:41.8]} 14.
Qc2 {[%clk 0:01:40]} 14... Ng4 {[%clk 0:02:30.7]} 15. e3 {[%clk 0:01:38.1]}
15... Nc5 {[%clk 0:02:28.7]} 16. b3 {[%clk 0:01:32.8]} 16... Ne4 {[%clk
0:02:02.7]} 17. Nxe4 {[%clk 0:01:15.1]} 17... fxe4 {[%clk 0:02:01.5]} 18. Bb2
{[%clk 0:00:50.7]} 18... Bxb2 {[%clk 0:02:01.1]} 19. Qxb2 {[%clk 0:00:50.9]}
19... Rf8 {[%clk 0:02:01.7]} 20. Rd2 {[%clk 0:00:36.9]} 20... Ref6 {[%clk
0:01:59.2]} 21. Rf1 {[%clk 0:00:32.4]} 21... d5 {[%clk 0:01:45]} 22. cxd5 {[%clk
0:00:32]} 22... cxd5 {[%clk 0:01:45.9]} 23. Qd4 {[%clk 0:00:29.8]} 23... Qxd4
{[%clk 0:01:42.4]} 24. Rxd4 {[%clk 0:00:30]} 24... Nxf2 {[%clk 0:01:11.9]} 25.
Rxd5 {[%clk 0:00:28.5]} 25... Ng4 {[%clk 0:01:09.4]} 26. Rxf6 {[%clk 0:00:24.8]}
26... Rxf6 {[%clk 0:01:08.7]} 27. Rd8+ {[%clk 0:00:23.6]} 27... Kg7 {[%clk
0:01:07.4]} 28. Rd7+ {[%clk 0:00:22.8]} 28... Rf7 {[%clk 0:01:05.7]} 29. Rxf7+
{[%clk 0:00:21.3]} 29... Kxf7 {[%clk 0:01:06.6]} 30. Bxe4 {[%clk 0:00:21.6]}
30... b6 {[%clk 0:01:03.7]} 31. Bd5+ {[%clk 0:00:21.5]} 31... Ke7 {[%clk
0:01:03.3]} 32. e4 {[%clk 0:00:19.9]} 32... Nf6 {[%clk 0:01:03.3]} 33. Ba8
{[%clk 0:00:10.2]} 33... Kd6 {[%clk 0:01:03.4]} 34. Kf2 {[%clk 0:00:09.1]} 34...
Ke5 {[%clk 0:01:04]} 35. Kf3 {[%clk 0:00:09]} 35... Nd7 {[%clk 0:01:03.4]} 36.
h4 {[%clk 0:00:04.5]} 36... Nc5 {[%clk 0:01:02.4]} 37. Bd5 {[%clk 0:00:04.6]}
37... Nd3 {[%clk 0:01:01]} 38. Bg8 {[%clk 0:00:03.3]} 38... h6 {[%clk
0:00:59.4]} 39. Bf7 {[%clk 0:00:03.1]} 39... Kf6 {[%clk 0:00:58.7]} 40. Bd5
{[%clk 0:00:03.2]} 40... Nb4 {[%clk 0:00:58.4]} 41. Kf4 {[%clk 0:00:02.9]} 41...
Nxa2 {[%clk 0:00:54.6]} 42. e5+ {[%clk 0:00:03]} 42... Ke7 {[%clk 0:00:54.9]}
43. e6 {[%clk 0:00:03.6]} 43... Nc3 {[%clk 0:00:54.2]} 44. Be4 {[%clk
0:00:03.7]} 44... Nxe4 {[%clk 0:00:53.6]} 0-1

[Event "*** SCC Grand Prix: Titled Tuesday Blitz"]
[Site "Chess.com"]
[Date "2020.08.11"]
[Round "9"]
[White "kasparicy"]
[Black "sergeikim"]
[Result "0-1"]
[WhiteElo "2340"]
[BlackElo "2459"]
[TimeControl "180+1"]
[EndTime "11:45:24 PDT"]
[Termination "sergeikim won by resignation"]

1. e4 {[%clk 0:03:00.9]} 1... e5 {[%clk 0:02:59.7]} 2. Nf3 {[%clk 0:02:52]} 2...
Nc6 {[%clk 0:02:59.5]} 3. Bc4 {[%clk 0:02:52.2]} 3... Bc5 {[%clk 0:02:58.1]} 4.
c3 {[%clk 0:02:52.5]} 4... Nf6 {[%clk 0:02:57.6]} 5. d3 {[%clk 0:02:52.4]} 5...
d6 {[%clk 0:02:57.3]} 6. Bb3 {[%clk 0:02:50.3]} 6... a6 {[%clk 0:02:57.2]} 7.
Nbd2 {[%clk 0:02:50.7]} 7... Ba7 {[%clk 0:02:57]} 8. h3 {[%clk 0:02:50.9]} 8...
O-O {[%clk 0:02:56.7]} 9. Nf1 {[%clk 0:02:49.2]} 9... Nh5 {[%clk 0:02:56.5]} 10.
Ng3 {[%clk 0:02:08.3]} 10... Nxg3 {[%clk 0:02:46.8]} 11. fxg3 {[%clk 0:02:09.2]}
11... Be6 {[%clk 0:02:44.9]} 12. Bc2 {[%clk 0:02:00.4]} 12... h6 {[%clk
0:02:36.1]} 13. Qe2 {[%clk 0:01:58.5]} 13... f5 {[%clk 0:02:33.2]} 14. exf5
{[%clk 0:01:47]} 14... Bxf5 {[%clk 0:02:30.5]} 15. Be3 {[%clk 0:01:43.6]} 15...
Bxe3 {[%clk 0:02:10.2]} 16. Qxe3 {[%clk 0:01:44.5]} 16... d5 {[%clk 0:01:46]}
17. g4 {[%clk 0:01:27.1]} 17... Bh7 {[%clk 0:01:41.5]} 18. O-O-O {[%clk
0:01:23.6]} 18... Qd6 {[%clk 0:01:25.9]} 19. g5 {[%clk 0:01:19.2]} 19... h5
{[%clk 0:01:21.4]} 20. g4 {[%clk 0:01:12]} 20... d4 {[%clk 0:01:11.6]} 21. Qe2
{[%clk 0:01:11.8]} 21... dxc3 {[%clk 0:00:53.9]} 22. Bb3+ {[%clk 0:01:09.4]}
22... Kh8 {[%clk 0:00:52.1]} 23. gxh5 {[%clk 0:01:09.1]} 23... cxb2+ {[%clk
0:00:47.9]} 24. Kb1 {[%clk 0:01:07.2]} 24... Bf5 {[%clk 0:00:46.3]} 25. Kxb2
{[%clk 0:00:46.5]} 25... a5 {[%clk 0:00:43]} 26. h6 {[%clk 0:00:23.7]} 26... a4
{[%clk 0:00:40.1]} 27. hxg7+ {[%clk 0:00:23.2]} 27... Kxg7 {[%clk 0:00:40]} 28.
Bc4 {[%clk 0:00:17.5]} 28... b5 {[%clk 0:00:38]} 29. Bxb5 {[%clk 0:00:17.8]}
29... Rab8 {[%clk 0:00:29.9]} 30. d4 {[%clk 0:00:17.7]} 30... Qb4+ {[%clk
0:00:25.9]} 31. Ka1 {[%clk 0:00:17.6]} 31... Rxb5 {[%clk 0:00:22.5]} 32. dxe5
{[%clk 0:00:12.6]} 32... Qc3+ {[%clk 0:00:20.6]} 0-1

[Event "*** SCC Grand Prix: Titled Tuesday Blitz"]
[Site "Chess.com"]
[Date "2020.08.11"]
[Round "9"]
[White "okriak"]
[Black "aa175"]
[Result "0-1"]
[WhiteElo "2730"]
[BlackElo "2494"]
[TimeControl "180+1"]
[EndTime "11:45:25 PDT"]
[Termination "aa175 won by resignation"]

1. e4 {[%clk 0:03:00.9]} 1... c5 {[%clk 0:03:00.1]} 2. Nf3 {[%clk 0:03:00.3]}
2... d6 {[%clk 0:02:59.9]} 3. d4 {[%clk 0:03:00.7]} 3... cxd4 {[%clk 0:03:00.8]}
4. Nxd4 {[%clk 0:03:01.1]} 4... Nf6 {[%clk 0:02:59.9]} 5. Nc3 {[%clk 0:03:01.5]}
5... a6 {[%clk 0:03:00.4]} 6. h3 {[%clk 0:03:01.4]} 6... e6 {[%clk 0:02:57.9]}
7. g4 {[%clk 0:03:00.4]} 7... b5 {[%clk 0:02:58]} 8. Bg2 {[%clk 0:02:57.1]} 8...
Bb7 {[%clk 0:02:57.6]} 9. O-O {[%clk 0:02:56.3]} 9... Qc7 {[%clk 0:02:56.7]} 10.
Re1 {[%clk 0:02:54.8]} 10... Be7 {[%clk 0:02:56.8]} 11. a4 {[%clk 0:02:48.2]}
11... b4 {[%clk 0:02:56.6]} 12. Na2 {[%clk 0:02:48.7]} 12... O-O {[%clk
0:02:50.3]} 13. g5 {[%clk 0:02:31.4]} 13... Nfd7 {[%clk 0:02:49.1]} 14. Nxb4
{[%clk 0:02:30.8]} 14... d5 {[%clk 0:02:46.6]} 15. c3 {[%clk 0:02:26.8]} 15...
dxe4 {[%clk 0:02:44.6]} 16. Bxe4 {[%clk 0:02:26.4]} 16... Bxe4 {[%clk
0:02:45.5]} 17. Rxe4 {[%clk 0:02:26.8]} 17... Qb7 {[%clk 0:02:36.6]} 18. Qf3
{[%clk 0:02:18.2]} 18... Bxb4 {[%clk 0:02:28.3]} 19. cxb4 {[%clk 0:02:14.4]}
19... Qxb4 {[%clk 0:02:26]} 20. Nxe6 {[%clk 0:02:12.5]} 20... fxe6 {[%clk
0:02:25]} 21. Qg4 {[%clk 0:01:57.4]} 21... Qe7 {[%clk 0:01:51.6]} 22. Rxe6
{[%clk 0:01:54.8]} 22... Qf7 {[%clk 0:01:50.1]} 23. Be3 {[%clk 0:01:54.4]} 23...
a5 {[%clk 0:01:39.6]} 24. Rd1 {[%clk 0:01:51.3]} 24... h5 {[%clk 0:01:05.6]} 25.
gxh6 {[%clk 0:01:38.3]} 25... Nf6 {[%clk 0:01:05.9]} 26. Qg2 {[%clk 0:01:18]}
26... Ra6 {[%clk 0:00:37.6]} 27. Re5 {[%clk 0:01:05.5]} 27... Nfd7 {[%clk
0:00:18.7]} 28. hxg7 {[%clk 0:00:31.3]} 28... Re8 {[%clk 0:00:16.6]} 29. Rg5
{[%clk 0:00:25.6]} 29... Ne5 {[%clk 0:00:13]} 30. f4 {[%clk 0:00:19.8]} 30...
Nc4 {[%clk 0:00:05.3]} 31. Bd4 {[%clk 0:00:19.6]} 31... Rd6 {[%clk 0:00:04.9]}
32. Rh5 {[%clk 0:00:19.4]} 32... Qxh5 {[%clk 0:00:04.7]} 0-1

[Event "*** SCC Grand Prix: Titled Tuesday Blitz"]
[Site "Chess.com"]
[Date "2020.08.11"]
[Round "9"]
[White "profofchess"]
[Black "Zarinur"]
[Result "1-0"]
[WhiteElo "2389"]
[BlackElo "2143"]
[TimeControl "180+1"]
[EndTime "11:45:25 PDT"]
[Termination "profofchess won by checkmate"]

1. e4 {[%clk 0:03:00.9]} 1... e5 {[%clk 0:02:59.4]} 2. Nf3 {[%clk 0:03:00.2]}
2... Nc6 {[%clk 0:02:59.3]} 3. Nc3 {[%clk 0:03:01.1]} 3... Nf6 {[%clk
0:02:58.5]} 4. Bb5 {[%clk 0:03:01.2]} 4... Bd6 {[%clk 0:02:54.2]} 5. d3 {[%clk
0:02:59.8]} 5... h6 {[%clk 0:02:51.8]} 6. a3 {[%clk 0:02:59.6]} 6... a6 {[%clk
0:02:48.4]} 7. Ba4 {[%clk 0:02:57.4]} 7... Bc5 {[%clk 0:02:45.2]} 8. Be3 {[%clk
0:02:49.3]} 8... Bxe3 {[%clk 0:02:39.2]} 9. fxe3 {[%clk 0:02:49.2]} 9... b5
{[%clk 0:02:39.3]} 10. Bb3 {[%clk 0:02:49.1]} 10... d6 {[%clk 0:02:39.1]} 11.
O-O {[%clk 0:02:45.5]} 11... O-O {[%clk 0:02:38.5]} 12. Nh4 {[%clk 0:02:23.5]}
12... Be6 {[%clk 0:02:17.8]} 13. Nf5 {[%clk 0:02:16.1]} 13... Kh7 {[%clk
0:02:09.1]} 14. Qf3 {[%clk 0:02:03.9]} 14... Bxb3 {[%clk 0:01:46]} 15. cxb3
{[%clk 0:02:04.8]} 15... Nd7 {[%clk 0:00:59.3]} 16. d4 {[%clk 0:01:36.4]} 16...
exd4 {[%clk 0:00:36.5]} 17. exd4 {[%clk 0:01:36.1]} 17... Na5 {[%clk 0:00:14]}
18. Nd5 {[%clk 0:01:23.9]} 18... c6 {[%clk 0:00:12.9]} 19. Nf4 {[%clk
0:01:22.1]} 19... Nf6 {[%clk 0:00:11.8]} 20. Rae1 {[%clk 0:01:10.7]} 20... d5
{[%clk 0:00:06.6]} 21. e5 {[%clk 0:00:52.6]} 21... Ne4 {[%clk 0:00:06]} 22. Rxe4
{[%clk 0:00:52.7]} 22... dxe4 {[%clk 0:00:05.6]} 23. Qxe4 {[%clk 0:00:53.6]}
23... g6 {[%clk 0:00:05.7]} 24. Nd6 {[%clk 0:00:53.1]} 24... Qg5 {[%clk
0:00:04.1]} 25. h4 {[%clk 0:00:37.8]} 25... Qg4 {[%clk 0:00:02.8]} 26. h5 {[%clk
0:00:38]} 26... Nxb3 {[%clk 0:00:01.7]} 27. Nxf7 {[%clk 0:00:35.6]} 27... Rxf7
{[%clk 0:00:01.4]} 28. hxg6+ {[%clk 0:00:35.6]} 28... Kg7 {[%clk 0:00:01.7]} 29.
gxf7 {[%clk 0:00:34.3]} 29... Kh8 {[%clk 0:00:01.4]} 30. Ng6+ {[%clk 0:00:30]}
30... Kg7 {[%clk 0:00:01.7]} 31. Qxg4 {[%clk 0:00:29.6]} 31... Kh7 {[%clk
0:00:01.6]} 32. Ne7 {[%clk 0:00:26.5]} 32... Rf8 {[%clk 0:00:02.5]} 33. Qg8+
{[%clk 0:00:26.3]} 33... Rxg8 {[%clk 0:00:02.1]} 34. fxg8=Q# {[%clk 0:00:27.2]}
1-0

[Event "*** SCC Grand Prix: Titled Tuesday Blitz"]
[Site "Chess.com"]
[Date "2020.08.11"]
[Round "9"]
[White "djano"]
[Black "Evgeny81"]
[Result "0-1"]
[WhiteElo "2417"]
[BlackElo "2694"]
[TimeControl "180+1"]
[EndTime "11:45:26 PDT"]
[Termination "Evgeny81 won on time"]

1. d4 {[%clk 0:03:00.9]} 1... Nf6 {[%clk 0:02:59.3]} 2. Bf4 {[%clk 0:02:59.8]}
2... d6 {[%clk 0:02:58.5]} 3. Nf3 {[%clk 0:02:53.8]} 3... g6 {[%clk 0:02:58.6]}
4. Nc3 {[%clk 0:02:49.8]} 4... Bg7 {[%clk 0:02:59]} 5. Qd2 {[%clk 0:02:42.3]}
5... O-O {[%clk 0:02:59.9]} 6. Bh6 {[%clk 0:02:41.9]} 6... c5 {[%clk 0:02:58.2]}
7. Bxg7 {[%clk 0:02:37.9]} 7... Kxg7 {[%clk 0:02:59.1]} 8. e4 {[%clk 0:02:29.4]}
8... Bg4 {[%clk 0:02:51.8]} 9. O-O-O {[%clk 0:02:17.3]} 9... cxd4 {[%clk
0:02:47.6]} 10. Qxd4 {[%clk 0:02:16.6]} 10... Bxf3 {[%clk 0:02:46.3]} 11. gxf3
{[%clk 0:02:16.4]} 11... Nc6 {[%clk 0:02:46.2]} 12. Qe3 {[%clk 0:02:15.6]} 12...
Qa5 {[%clk 0:02:43.9]} 13. h4 {[%clk 0:02:10.6]} 13... h5 {[%clk 0:02:41]} 14.
Kb1 {[%clk 0:01:58]} 14... Rac8 {[%clk 0:02:39.1]} 15. Rg1 {[%clk 0:01:52]}
15... Ne5 {[%clk 0:02:29]} 16. f4 {[%clk 0:01:43.3]} 16... Neg4 {[%clk
0:02:22.5]} 17. Qe1 {[%clk 0:01:24.6]} 17... Rxc3 {[%clk 0:02:17.9]} 18. Qxc3
{[%clk 0:01:09.4]} 18... Qxc3 {[%clk 0:02:17]} 19. bxc3 {[%clk 0:01:10.3]} 19...
Nxf2 {[%clk 0:02:16.4]} 20. Rd4 {[%clk 0:01:05.9]} 20... N2xe4 {[%clk
0:02:15.1]} 21. Kb2 {[%clk 0:00:56.3]} 21... e6 {[%clk 0:02:04.5]} 22. c4 {[%clk
0:00:53.3]} 22... Rd8 {[%clk 0:01:41.1]} 23. Bg2 {[%clk 0:00:53.2]} 23... Nc5
{[%clk 0:01:41.1]} 24. Rgd1 {[%clk 0:00:52.7]} 24... Ne8 {[%clk 0:01:40.3]} 25.
Kc1 {[%clk 0:00:46.1]} 25... Kf6 {[%clk 0:01:38.9]} 26. c3 {[%clk 0:00:41.5]}
26... Ke7 {[%clk 0:01:38.6]} 27. Kc2 {[%clk 0:00:41.1]} 27... Ng7 {[%clk
0:01:38.2]} 28. Bh3 {[%clk 0:00:35.1]} 28... b6 {[%clk 0:01:23.4]} 29. Re1
{[%clk 0:00:32.2]} 29... Rc8 {[%clk 0:01:20.6]} 30. Red1 {[%clk 0:00:30.8]}
30... Ne8 {[%clk 0:01:18.5]} 31. Re1 {[%clk 0:00:29.6]} 31... Nd7 {[%clk
0:01:14.2]} 32. Red1 {[%clk 0:00:22.8]} 32... Rc5 {[%clk 0:01:11.4]} 33. a3
{[%clk 0:00:18.2]} 33... Ra5 {[%clk 0:01:10.5]} 34. Kb2 {[%clk 0:00:17.5]} 34...
Nc5 {[%clk 0:01:08.3]} 35. Ka2 {[%clk 0:00:14.9]} 35... Nd7 {[%clk 0:01:00.9]}
36. Kb2 {[%clk 0:00:14.8]} 36... Nb8 {[%clk 0:00:54.7]} 37. Ka2 {[%clk
0:00:12.9]} 37... Rc5 {[%clk 0:00:54.8]} 38. Kb2 {[%clk 0:00:11.8]} 38... Nc6
{[%clk 0:00:54.9]} 39. Re4 {[%clk 0:00:10.2]} 39... Nf6 {[%clk 0:00:54.3]} 40.
Re2 {[%clk 0:00:06.5]} 40... Rxc4 {[%clk 0:00:53.3]} 41. f5 {[%clk 0:00:03.5]}
41... gxf5 {[%clk 0:00:51.4]} 42. Bxf5 {[%clk 0:00:03.2]} 42... Rxh4 {[%clk
0:00:51.7]} 43. Bc2 {[%clk 0:00:01.5]} 43... Ne5 {[%clk 0:00:51.5]} 0-1

[Event "*** SCC Grand Prix: Titled Tuesday Blitz"]
[Site "Chess.com"]
[Date "2020.08.11"]
[Round "9"]
[White "UCantHandleDenker"]
[Black "TokChess"]
[Result "1-0"]
[WhiteElo "2568"]
[BlackElo "2398"]
[TimeControl "180+1"]
[EndTime "11:45:27 PDT"]
[Termination "UCantHandleDenker won by resignation"]

1. Nf3 {[%clk 0:03:00.9]} 1... Nf6 {[%clk 0:02:57.5]} 2. g3 {[%clk 0:03:01.1]}
2... g6 {[%clk 0:02:56.7]} 3. Bg2 {[%clk 0:03:01.7]} 3... Bg7 {[%clk 0:02:57.6]}
4. O-O {[%clk 0:03:02.4]} 4... O-O {[%clk 0:02:58.2]} 5. d3 {[%clk 0:03:03.1]}
5... d5 {[%clk 0:02:58]} 6. Nbd2 {[%clk 0:03:04]} 6... c5 {[%clk 0:02:55.8]} 7.
e4 {[%clk 0:03:04.2]} 7... Nc6 {[%clk 0:02:56.2]} 8. Re1 {[%clk 0:03:04.2]} 8...
e6 {[%clk 0:02:38.5]} 9. c3 {[%clk 0:03:03.3]} 9... b6 {[%clk 0:02:37.9]} 10. a3
{[%clk 0:03:03.1]} 10... Qd7 {[%clk 0:02:31.5]} 11. e5 {[%clk 0:02:58.7]} 11...
Ne8 {[%clk 0:02:31.1]} 12. d4 {[%clk 0:02:58.3]} 12... Nc7 {[%clk 0:02:30.5]}
13. h4 {[%clk 0:02:57.8]} 13... a5 {[%clk 0:02:27]} 14. Nf1 {[%clk 0:02:56.5]}
14... a4 {[%clk 0:02:13.1]} 15. h5 {[%clk 0:02:56]} 15... cxd4 {[%clk
0:02:13.3]} 16. cxd4 {[%clk 0:02:55.4]} 16... Na5 {[%clk 0:02:10.4]} 17. h6
{[%clk 0:02:54.4]} 17... Bh8 {[%clk 0:02:09.9]} 18. Bg5 {[%clk 0:02:51.2]} 18...
Nb3 {[%clk 0:02:09.8]} 19. Rb1 {[%clk 0:02:51]} 19... Nb5 {[%clk 0:02:06.2]} 20.
Ne3 {[%clk 0:02:48.2]} 20... f5 {[%clk 0:01:56.8]} 21. exf6 {[%clk 0:02:46.9]}
21... Bxf6 {[%clk 0:01:57]} 22. Bxf6 {[%clk 0:02:45.8]} 22... Rxf6 {[%clk
0:01:57.5]} 23. Ng4 {[%clk 0:02:46.4]} 23... Rf8 {[%clk 0:01:55.9]} 24. Nge5
{[%clk 0:02:22]} 24... Qd8 {[%clk 0:01:44.7]} 25. Qd3 {[%clk 0:02:18.5]} 25...
Qe8 {[%clk 0:01:35.3]} 26. Rbd1 {[%clk 0:02:13.5]} 26... Nd6 {[%clk 0:01:25.5]}
27. Ng5 {[%clk 0:02:08.2]} 27... Nf5 {[%clk 0:01:16.9]} 28. Bh3 {[%clk 0:01:46]}
28... Nxh6 {[%clk 0:01:05.2]} 29. Kg2 {[%clk 0:01:31.6]} 29... Nf5 {[%clk
0:01:04.1]} 30. Bxf5 {[%clk 0:01:31.3]} 30... Rxf5 {[%clk 0:01:02.8]} 31. f4
{[%clk 0:01:28.5]} 31... Ra7 {[%clk 0:00:50.2]} 32. Qc3 {[%clk 0:01:17.8]} 32...
h6 {[%clk 0:00:38.4]} 33. Ngf3 {[%clk 0:01:15.8]} 33... Qd8 {[%clk 0:00:34.9]}
34. Nxg6 {[%clk 0:01:08.2]} 34... Rc7 {[%clk 0:00:32.8]} 35. Qd3 {[%clk
0:01:07.5]} 35... Kg7 {[%clk 0:00:30.5]} 36. Nge5 {[%clk 0:01:05.3]} 36... Qe8
{[%clk 0:00:19.6]} 37. Re2 {[%clk 0:00:57.4]} 37... Rf6 {[%clk 0:00:10.6]} 38.
Rc2 {[%clk 0:00:56.6]} 38... Qd8 {[%clk 0:00:08]} 39. Re1 {[%clk 0:00:53.1]}
39... Ba6 {[%clk 0:00:05.7]} 40. Rxc7+ {[%clk 0:00:51.5]} 40... Qxc7 {[%clk
0:00:04.3]} 41. Qxa6 {[%clk 0:00:51.6]} 41... Qc2+ {[%clk 0:00:04.4]} 42. Re2
{[%clk 0:00:51.5]} 42... Qf5 {[%clk 0:00:03.2]} 43. Qb7+ {[%clk 0:00:50.6]}
43... Kh8 {[%clk 0:00:03.4]} 44. Qc8+ {[%clk 0:00:48.3]} 44... Rf8 {[%clk
0:00:03.3]} 45. Qxf8+ {[%clk 0:00:47.8]} 45... Qxf8 {[%clk 0:00:03.4]} 46. Ng6+
{[%clk 0:00:48.3]} 1-0

[Event "*** SCC Grand Prix: Titled Tuesday Blitz"]
[Site "Chess.com"]
[Date "2020.08.11"]
[Round "9"]
[White "PowerThinking2650"]
[Black "peixe64"]
[Result "1-0"]
[WhiteElo "2441"]
[BlackElo "2305"]
[TimeControl "180+1"]
[EndTime "11:45:29 PDT"]
[Termination "PowerThinking2650 won on time"]

1. e4 {[%clk 0:03:00.9]} 1... e5 {[%clk 0:02:59.9]} 2. Nf3 {[%clk 0:03:00.4]}
2... Nc6 {[%clk 0:03:00.1]} 3. Nc3 {[%clk 0:03:00.8]} 3... Nf6 {[%clk 0:02:59]}
4. d4 {[%clk 0:03:01.1]} 4... exd4 {[%clk 0:02:59]} 5. Nxd4 {[%clk 0:03:02]}
5... Bb4 {[%clk 0:02:59.4]} 6. Nxc6 {[%clk 0:03:02.1]} 6... bxc6 {[%clk
0:02:59.6]} 7. Bd3 {[%clk 0:03:02.3]} 7... d5 {[%clk 0:03:00.1]} 8. exd5 {[%clk
0:03:03.2]} 8... cxd5 {[%clk 0:03:00.1]} 9. O-O {[%clk 0:03:03]} 9... O-O {[%clk
0:03:00.2]} 10. Bg5 {[%clk 0:03:03.2]} 10... c6 {[%clk 0:02:59.1]} 11. Qf3
{[%clk 0:03:03.4]} 11... Be7 {[%clk 0:02:55.4]} 12. Rae1 {[%clk 0:03:02.7]}
12... Be6 {[%clk 0:02:45.8]} 13. Ne2 {[%clk 0:03:00.1]} 13... Bg4 {[%clk
0:02:27.9]} 14. Qg3 {[%clk 0:02:57.8]} 14... Bxe2 {[%clk 0:02:21.8]} 15. Rxe2
{[%clk 0:02:52.2]} 15... Ne4 {[%clk 0:01:46.5]} 16. Bxe4 {[%clk 0:02:29.6]}
16... Bxg5 {[%clk 0:01:44.9]} 17. Bd3 {[%clk 0:02:27.9]} 17... g6 {[%clk
0:01:40.8]} 18. Rfe1 {[%clk 0:02:26.6]} 18... Bf6 {[%clk 0:01:37.3]} 19. b3
{[%clk 0:02:23.6]} 19... Rc8 {[%clk 0:01:32]} 20. Re3 {[%clk 0:02:13.2]} 20...
c5 {[%clk 0:01:13.9]} 21. Bf5 {[%clk 0:02:06.8]} 21... Ra8 {[%clk 0:01:02.1]}
22. Rd3 {[%clk 0:02:03]} 22... Re8 {[%clk 0:00:54.8]} 23. Red1 {[%clk
0:01:57.2]} 23... Qb8 {[%clk 0:00:45.4]} 24. Qxb8 {[%clk 0:01:54.2]} 24... Rexb8
{[%clk 0:00:44.9]} 25. Bg4 {[%clk 0:01:47.7]} 25... Rd8 {[%clk 0:00:36.8]} 26.
Rxd5 {[%clk 0:01:46.7]} 26... Rxd5 {[%clk 0:00:36.8]} 27. Rxd5 {[%clk
0:01:47.6]} 27... Re8 {[%clk 0:00:25.5]} 28. g3 {[%clk 0:01:45.2]} 28... Re1+
{[%clk 0:00:25.6]} 29. Kg2 {[%clk 0:01:44.6]} 29... c4 {[%clk 0:00:22.5]} 30.
bxc4 {[%clk 0:01:41.2]} 30... Rc1 {[%clk 0:00:22.6]} 31. Rd2 {[%clk 0:01:30]}
31... Bc3 {[%clk 0:00:20.9]} 32. Rd7 {[%clk 0:01:25]} 32... Rxc2 {[%clk
0:00:19]} 33. Bf3 {[%clk 0:01:20.9]} 33... Bb4 {[%clk 0:00:15.9]} 34. Bd5 {[%clk
0:01:15.4]} 34... Bc5 {[%clk 0:00:15.9]} 35. Rxf7 {[%clk 0:01:14.3]} 35... Kh8
{[%clk 0:00:16.5]} 36. a4 {[%clk 0:01:11.6]} 36... a5 {[%clk 0:00:16.2]} 37. h4
{[%clk 0:01:10.9]} 37... Ra2 {[%clk 0:00:13.8]} 38. g4 {[%clk 0:01:09.9]} 38...
Rxa4 {[%clk 0:00:13.5]} 39. h5 {[%clk 0:01:06.7]} 39... gxh5 {[%clk 0:00:13.9]}
40. gxh5 {[%clk 0:01:06.7]} 40... Ra2 {[%clk 0:00:10.4]} 41. h6 {[%clk
0:01:04.8]} 41... Re2 {[%clk 0:00:02.2]} 42. Kf1 {[%clk 0:00:48.5]} 1-0